bitfinex-derivatives/quotes_ETHF0:USTF0_20250830
["timestamp","ask_amount","ask_price","bid_price","bid_amount"]
[1756519234822,2.4661,4266.2,4264.6,3.2078]
[1756519235123,0.42191,4265.5,4264.7,0.433]
[1756519235419,0.42193,4265.3,4264.8,0.433]
[1756519235618,2.4661,4265.2,4264.9,0.433]
[1756519236019,3.62973,4265.3,4264.9,0.433]
[1756519236213,2.4661,4265.1,4264.9,0.433]
[1756519236414,2.4661,4265.2,4264.9,0.433]
[1756519236622,2.4661,4265.1,4264.9,0.433]
[1756519236923,2.4149,4265.2,4264.9,0.433]
[1756519237126,2.4149,4265.2,4264.7,0.43]
[1756519237326,2.4149,4264.8,4264.7,0.43]
[1756519239033,1.1719301,4266.9,4264.7,0.43]
[1756519239034,1.1719301,4266.9,4265.9,0.42187]
[1756519239327,1.9,4270.2,4266.0,0.429]
[1756519239328,2.4149,4267.1,4266.0,0.429]
[1756519239518,3.2078,4268.5,4266.5,0.4218]
[1756519239718,3.2078,4267.7,4266.6,0.43]
[1756519239922,5.6227,4267.7,4266.6,0.43]
[1756519240126,5.6227,4267.7,4266.7,0.42179]
[1756519240326,2.4149,4267.7,4266.9,3.62957]
[1756519240820,2.4149,4267.7,4267.4,3.2078]
[1756519241020,3.2078,4268.3,4267.5,0.428]
[1756519241222,2.4149,4268.2,4267.5,0.428]
[1756519245126,4.3149,4270.2,4268.1,3.2078]
[1756519245331,1.9,4270.2,4269.5,3.2078]
[1756519245521,1.9,4270.2,4269.6,0.424]
[1756519246424,1.9,4270.2,4269.8,3.2078]
[1756519247125,1.9,4270.2,4269.9,0.42147]
[1756519247429,1.9,4270.2,4270.0,0.422]
[1756519248326,1.9,4270.2,4270.1,4.0]
[1756519248728,1.9,4270.2,4270.1,1.04636371]
[1756519248930,1.9,4270.2,4270.1,1.46636371]
[1756519249426,1.9,4270.2,4270.1,0.42]
[1756519250228,1.9,4270.2,4270.1,4.42]
[1756519250727,1.9,4270.2,4270.1,7.42047129]
[1756519251230,1.9,4270.2,4270.1,7.84192129]
[1756519252028,0.00493199,4271.5,4271.4,0.42132]
[1756519252220,1e-08,4271.5,4271.4,4.04612]
[1756519252427,1e-08,4271.5,4271.4,41.87068869]
[1756519252722,1e-08,4271.5,4271.4,41.86968869]
[1756519252920,1e-08,4271.5,4271.4,37.45368869]
[1756519253226,1e-08,4271.5,4271.4,37.79112]
[1756519253431,1e-08,4271.5,4271.4,37.37512]
[1756519253636,2.41490001,4271.5,4271.4,36.9538]
[1756519253826,1e-08,4271.5,4271.4,37.3698]
[1756519254333,1e-08,4271.5,4271.4,43.98542228]
[1756519254536,1e-08,4271.5,4271.4,44.40042228]
[1756519254831,2.4149,4273.9,4272.0,3.2078]
[1756519255132,0.42114,4273.3,4272.5,3.2078]
[1756519255336,0.42118,4272.9,4272.6,0.415]
[1756519255525,4.26058,4273.7,4272.0,3.2078]
[1756519255729,2.4149,4273.6,4272.1,0.414]
[1756519256030,2.4149,4272.8,4272.2,0.414]
[1756519256229,2.4149,4273.3,4272.7,3.2078]
[1756519256423,1.05246,4275.0,4271.5,1.05329]
[1756519256424,0.42108,4273.9,4273.1,3.2078]
[1756519256636,2.4149,4273.7,4273.1,3.2078]
[1756519256826,0.42107,4274.1,4273.2,3.6208]
[1756519257031,2.4149,4274.3,4273.5,0.42112]
[1756519257232,2.4149,4273.9,4273.2,3.2078]
[1756519257530,2.4149,4274.3,4273.2,3.2078]
[1756519257731,2.4149,4273.9,4273.2,3.62894]
[1756519257927,2.4149,4273.9,4273.2,3.2078]
[1756519258129,2.4149,4273.6,4273.2,3.2078]
[1756519258330,2.4149,4273.9,4273.3,0.413]
[1756519258631,0.42109,4273.9,4273.3,0.413]
[1756519258831,0.4211,4273.7,4273.3,0.413]
[1756519259333,2.4149,4273.6,4273.3,0.413]
[1756519259633,0.4211,4273.7,4273.3,0.413]
[1756519259833,3.2078,4274.4,4273.3,0.413]
[1756519260037,2.4149,4274.2,4273.1,3.2078]
[1756519260239,2.4149,4274.3,4273.2,0.411]
[1756519260429,2.4149,4274.0,4273.9,3.2078]
[1756519260628,2.4149,4274.0,4273.9,3.6178]
[1756519260835,3.62878,4275.0,4273.9,4.03887]
[1756519261032,0.42101,4274.7,4273.9,3.6178]
[1756519261232,3.2078,4275.0,4273.9,3.6178]
[1756519261437,6.04361,4275.7,4274.6,3.2078]
[1756519261638,2.4149,4275.4,4275.1,3.2078]
[1756519261841,2.4149,4275.3,4275.2,0.409]
[1756519262036,2.4149,4276.0,4275.2,0.409]
[1756519262235,2.4149,4276.7,4275.8,3.2078]
[1756519262439,0.4209,4275.8,4275.1,3.2078]
[1756519262643,2.4149,4276.5,4275.2,0.408]
[1756519262938,0.42089,4275.8,4275.2,0.408]
[1756519263135,0.42089,4275.8,4275.5,3.2078]
[1756519263441,5.6227,4276.8,4275.6,0.408]
[1756519263739,2.4149,4275.9,4275.8,3.2078]
[1756519263946,2.4149,4275.9,4275.8,3.6148]
[1756519264539,2.4149,4275.9,4275.8,0.407]
[1756519264729,0.42089,4275.8,4275.7,3.2078]
[1756519264941,3.2078,4276.8,4275.1,3.2078]
[1756519264942,0.42094,4275.4,4275.1,3.2078]
[1756519265138,2.4149,4275.3,4275.0,3.2078]
[1756519265337,2.4149,4275.2,4275.1,0.406]
[1756519265643,2.4149,4275.2,4273.8,3.2078]
[1756519265644,2.4149,4274.5,4273.8,3.2078]
[1756519265834,2.4149,4274.5,4273.9,0.405]
[1756519266139,0.42107,4274.0,4273.9,0.405]
[1756519266340,0.42107,4274.0,4273.8,3.2078]
[1756519266341,2.4149,4273.9,4273.8,3.2078]
[1756519266639,0.42108,4274.0,4273.8,3.6118]
[1756519266828,2.83116,4274.2,4273.9,0.404]
[1756519267035,3.2078,4274.9,4273.9,0.404]
[1756519267036,2.4101,4274.0,4273.9,0.404]
[1756519267234,2.83127,4273.0,4272.9,33.713]
[1756519267436,2.8313,4272.7,4272.6,3.2078]
[1756519267638,2.4101,4272.7,4272.1,3.2078]
[1756519267940,11.58105,4273.5,4271.5,36.9178]
[1756519267941,2.4101,4272.6,4271.5,36.9178]
[1756519268133,2.4101,4273.5,4272.2,3.2078]
[1756519268340,1.1719301,4274.8,4273.8,0.4013]
[1756519268539,2.4101,4274.8,4274.1,3.2078]
[1756519268738,2.4101,4276.3,4274.6,3.2078]
[1756519268944,3.2078,4276.9,4275.9,3.2078]
[1756519269242,3.01742859,4276.8,4275.9,3.2078]
[1756519269443,0.60732859,4276.7,4275.0,3.2078]
[1756519269742,2.4101,4276.5,4275.5,3.2078]
[1756519270036,2.4101,4276.5,4274.5,0.42102]
[1756519270037,2.4101,4276.7,4275.6,0.403]
[1756519270244,0.60732386,4276.6,4275.7,0.403]
[1756519270443,0.60732386,4276.5,4274.9,3.2078]
[1756519270630,2.4101,4276.2,4274.9,3.2078]
[1756519270837,2.4101,4276.0,4275.0,0.403]
[1756519271032,2.4101,4275.8,4275.0,0.403]
[1756519271241,2.4101,4275.6,4274.6,0.402]
[1756519271435,2.4101,4275.4,4274.6,0.402]
[1756519271648,0.60732386,4275.3,4274.0,3.2078]
[1756519271941,2.4101,4275.1,4274.1,0.401]
[1756519272142,0.60732386,4275.0,4274.1,0.401]
[1756519272349,0.402,4275.6,4274.1,0.401]
[1756519272350,3.01742386,4274.9,4274.1,0.401]
[1756519272647,2.4101,4274.7,4274.1,0.401]
[1756519272935,2.4101,4274.5,4274.1,0.4]
[1756519273140,3.2078,4275.3,4274.1,0.4]
[1756519273141,2.8101,4275.2,4274.1,0.4]
[1756519273444,2.4101,4275.0,4274.1,0.4]
[1756519273644,0.60716243,4274.9,4274.1,0.4]
[1756519273844,0.60716243,4274.9,4274.0,3.2078]
[1756519273845,2.4101,4274.8,4274.0,3.2078]
[1756519274041,2.4101,4274.6,4274.0,3.2078]
[1756519274241,3.2078,4274.4,4273.1,3.2078]
[1756519274536,0.60716243,4274.3,4273.1,3.6058]
[1756519274942,3.2078,4273.7,4273.1,3.6058]
[1756519275140,0.60716243,4273.6,4273.1,3.6058]
[1756519275643,3.2078,4274.2,4273.2,2.4556]
[1756519275845,0.60884016,4274.1,4273.0,3.2078]
[1756519276040,3.01894016,4274.0,4273.0,3.2078]
[1756519276241,2.1662,4274.7,4273.6,2.4556]
[1756519276242,0.60884016,4273.9,4273.6,2.4556]
[1756519276441,4.5763,4274.7,4273.8,2.4556]
[1756519276644,0.42102,4274.5,4274.2,3.2078]
[1756519276847,0.4211,4273.8,4273.5,5.6634]
[1756519277034,0.4211,4273.8,4273.6,0.397]
[1756519277238,0.4211,4273.8,4273.7,2.4556]
[1756519277434,0.42108,4274.0,4273.8,2.4556]
[1756519277642,2.4101,4274.4,4273.9,0.396]
[1756519277835,0.42113,4273.4,4273.3,33.706]
[1756519278235,2.83123,4273.4,4273.3,33.706]
[1756519278441,2.83123,4273.4,4273.3,34.101]
[1756519278442,1.02815876,4273.4,4273.3,34.101]
[1756519278650,1.02815876,4273.4,4273.3,33.706]
[1756519278950,1.02815876,4273.4,4273.3,34.101]
[1756519279447,1.02815876,4273.4,4273.3,33.706]
[1756519279643,1.02815876,4273.4,4273.3,39.7634]
[1756519279838,1.9186,4273.8,4273.3,40.9138]
[1756519279839,0.42111,4273.7,4273.3,40.9138]
[1756519280039,0.60736305,4273.6,4273.4,2.8496]
[1756519280241,1.9186,4273.8,4273.4,2.8496]
[1756519280242,1.02862325,4273.5,4273.4,2.8496]
[1756519280641,1.02862325,4273.5,4273.3,33.706]
[1756519280843,0.60750325,4273.4,4273.3,33.706]
[1756519281043,0.60750325,4273.4,4273.3,34.099]
[1756519281248,0.60750325,4273.4,4273.3,33.706]
[1756519281650,3.01760325,4273.4,4273.3,34.098]
[1756519282148,0.42125,4272.2,4272.1,3.2078]
[1756519282347,1.02875325,4272.2,4272.1,3.2078]
[1756519282650,3.43885325,4272.2,4272.1,3.2078]
[1756519282848,3.43885325,4272.2,4272.1,3.5988]
[1756519283047,0.23411,4272.1,4268.3,5.6634]
[1756519283279,3.2078,4269.1,4268.4,0.392]
[1756519283441,3.2078,4269.8,4268.6,2.4556]
[1756519283645,0.72444581,4269.7,4268.7,0.392]
[1756519283848,3.2078,4269.2,4268.8,2.4556]
[1756519284046,0.60764581,4269.1,4268.9,0.392]
[1756519284247,3.2078,4269.2,4268.9,2.8476]
[1756519284449,2.5269,4269.7,4269.1,2.4556]
[1756519284450,0.1168,4269.7,4269.1,2.4556]
[1756519284653,0.60592236,4269.6,4268.6,2.4556]
[1756519284854,0.60593157,4269.5,4268.7,0.391]
[1756519285150,3.2078,4269.0,4268.8,2.4556]
[1756519285357,0.1168,4269.7,4268.8,2.4556]
[1756519285651,3.2078,4270.8,4269.6,2.4556]
[1756519285847,0.21228359,4270.7,4270.6,5.6634]
[1756519286053,5.6179,4272.2,4270.7,2.4556]
[1756519286250,0.60518847,4272.1,4270.8,0.39]
[1756519286455,0.60518847,4272.0,4271.5,3.2078]
[1756519286661,3.01510539,4271.9,4271.6,0.39]
[1756519286851,3.2078,4272.2,4271.6,0.39]
[1756519287051,0.60503347,4272.1,4271.6,0.39]
[1756519287255,3.2078,4272.2,4270.6,33.713]
[1756519287256,3.01513347,4272.0,4271.4,3.2078]
[1756519287450,3.01492514,4271.9,4271.5,0.39]
[1756519287649,2.4101,4271.9,4271.6,0.39]
[1756519287955,2.4101,4271.9,4271.0,3.2078]
[1756519288154,2.4101,4271.7,4270.6,33.713]
[1756519288351,3.2078,4271.0,4270.1,2.4556]
[1756519288562,0.60483516,4270.9,4270.2,0.389]
[1756519288753,3.2078,4271.0,4270.2,0.389]
[1756519288950,0.60450245,4270.9,4270.2,0.389]
[1756519289152,0.60450245,4270.8,4270.4,3.2078]
[1756519289353,0.60450245,4270.8,4270.1,2.4556]
[1756519289354,5.6179,4271.4,4270.5,0.389]
[1756519289553,5.6179,4271.4,4270.1,2.4556]
[1756519289554,0.60404483,4271.3,4270.1,2.4556]
[1756519289750,0.60404483,4271.2,4270.2,0.388]
[1756519290051,2.4101,4270.5,4269.1,36.9248]
[1756519290245,2.4101,4270.5,4269.2,0.388]
[1756519290654,1.05359,4270.4,4269.4,3.2078]
[1756519290859,0.42157,4269.0,4268.7,2.4556]
[1756519291153,0.42157,4269.0,4268.9,2.4556]
[1756519291356,5.6179,4270.5,4268.9,2.4556]
[1756519291659,1.05359,4270.4,4269.3,3.2078]
[1756519291860,0.42153,4269.4,4269.3,5.6634]
[1756519292055,0.42153,4269.4,4269.3,6.0494]
[1756519292551,0.42152,4269.5,4269.4,2.4556]
[1756519292955,0.42152,4269.5,4269.4,5.6634]
[1756519293754,0.42152,4269.5,4269.4,2.4556]
[1756519294163,1.9204,4269.8,4269.5,2.4556]
[1756519294350,1.9204,4269.8,4269.7,2.4556]
[1756519294558,2.4101,4271.1,4269.7,2.8386]
[1756519294759,0.42141,4270.6,4270.5,4.0818]
[1756519294957,0.42141,4270.6,4270.5,1.257]
[1756519295253,0.42139,4270.9,4270.5,1.257]
[1756519295455,0.42139,4270.9,4270.6,0.874]
[1756519295657,0.42146,4270.2,4270.1,3.2078]
[1756519295856,0.42146,4270.2,4270.1,4.0818]
[1756519296149,0.42146,4270.2,4270.1,4.4648]
[1756519296352,0.42144,4270.3,4270.1,3.5908]
[1756519296559,0.42144,4270.3,4270.2,0.874]
[1756519298352,0.42144,4270.3,4270.2,1.257]
[1756519298552,1.92,4270.7,4270.2,4.383]
[1756519298754,1.92,4270.7,4270.6,4.0838]
[1756519299069,0.42141,4270.6,4270.5,3.2078]
[1756519299265,0.42141,4270.6,4270.5,0.383]
[1756519299457,0.42141,4270.6,4270.5,4.4668]
[1756519300458,3.2078,4271.6,4270.6,0.876]
[1756519300658,0.42137,4271.0,4270.7,0.383]
[1756519300862,0.42135,4271.3,4270.7,0.383]
[1756519301758,0.42134,4271.3,4271.2,3.2078]
[1756519301965,1.05318,4272.1,4271.2,3.5908]
[1756519302260,0.42134,4271.4,4271.2,3.5908]
[1756519304163,0.6031,4271.7,4271.2,3.5908]
[1756519304663,0.42134,4271.4,4271.2,3.5908]
[1756519305163,0.42134,4271.4,4271.2,3.2078]
[1756519305362,0.42134,4271.4,4271.3,0.383]
[1756519305761,2.3214,4271.6,4271.3,0.383]
[1756519305965,0.42133,4271.4,4271.3,0.383]
[1756519306161,0.42131,4271.6,4271.3,0.383]
[1756519306466,0.6031,4271.7,4271.3,7.37456119]
[1756519306768,0.6031,4271.7,4271.4,0.42132]
[1756519306967,0.6031,4271.7,4271.5,0.383]
[1756519307664,0.6031,4271.7,4271.2,3.62915]
[1756519307963,0.6031,4271.7,4271.6,0.42131]
[1756519308272,3.2078,4273.3,4272.3,0.42124]
[1756519308463,3.2078,4273.3,4272.8,3.2078]
[1756519308667,3.2078,4273.3,4272.9,0.383]
[1756519308862,2.3214,4273.7,4272.9,0.383]
[1756519309065,0.42111,4273.6,4273.5,3.2078]
[1756519309370,0.42111,4273.6,4273.5,3.5908]
[1756519309668,2.3214,4273.6,4272.9,3.2078]
[1756519309873,0.42109,4273.9,4273.5,3.2078]
[1756519310171,0.42111,4273.6,4273.5,3.2078]
[1756519310373,0.42115,4273.3,4273.0,3.2078]
[1756519310565,2.74255,4273.3,4273.2,3.2078]
[1756519310767,0.42112,4273.5,4273.2,3.2078]
[1756519311072,0.42107,4274.1,4273.3,0.382]
[1756519311370,0.42107,4274.1,4273.9,3.2078]
[1756519311567,0.42107,4274.1,4274.0,0.382]
[1756519311769,2.1664,4274.2,4274.0,0.382]
[1756519311965,0.42104,4274.4,4274.0,0.382]
[1756519312274,2.3214,4274.8,4274.0,0.382]
[1756519312674,0.421,4274.7,4274.0,34.098]
[1756519312866,0.42106,4274.2,4274.0,34.098]
[1756519313373,0.42103,4274.5,4274.0,34.098]
[1756519313574,0.42106,4274.2,4274.0,34.098]
[1756519313772,0.42106,4274.2,4274.1,0.382]
[1756519314272,2.3214,4274.1,4274.0,33.716]
[1756519314470,2.3214,4274.1,4274.0,37.3058]
[1756519315573,2.3214,4274.1,4274.0,34.098]
[1756519316777,2.3214,4274.1,4274.0,36.9238]
[1756519316979,6.3214,4274.1,4274.0,33.716]
[1756519317180,6.3214,4274.1,4274.0,31.5819]
[1756519317686,9.5292,4274.1,4274.0,31.5819]
[1756519318883,6.3214,4274.1,4274.0,31.1999]
[1756519319286,2.3214,4274.1,4274.0,31.5819]
[1756519320287,4.0857,4274.7,4274.0,37.0963]
[1756519320785,1.7643,4274.7,4274.0,37.0963]
[1756519320986,1.7643,4274.7,4274.3,2.3066]
[1756519321287,1.7643,4274.7,4274.6,5.5144]
[1756519321482,1.7643,4274.7,4274.6,5.8964]
[1756519321679,2.3214,4275.8,4274.7,2.3066]
[1756519321985,2.3214,4275.8,4274.8,0.382]
[1756519322181,2.3214,4275.8,4275.1,3.2078]
[1756519322385,2.3214,4275.8,4275.6,3.2078]
[1756519322685,5.5292,4276.4,4275.7,0.382]
[1756519323386,2.1654,4276.3,4275.7,0.382]
[1756519323787,0.23386,4276.2,4274.5,2.3066]
[1756519323981,2.3214,4276.1,4274.6,0.381]
[1756519324185,2.3214,4275.5,4274.7,0.381]
[1756519324593,2.3214,4275.5,4274.9,3.2078]
[1756519324885,3.2078,4275.6,4275.0,0.381]
[1756519325586,0.42098,4275.0,4274.8,2.3066]
[1756519325888,0.42094,4275.4,4275.0,2.3066]
[1756519326186,2.3214,4275.6,4274.6,2.3066]
[1756519326391,0.42096,4275.2,4274.9,5.5144]
[1756519326590,0.42096,4275.2,4275.1,2.3066]
[1756519326984,0.4209,4275.9,4275.1,2.3897]
[1756519327186,0.4209,4275.9,4275.6,2.3897]
[1756519327384,0.4209,4275.9,4275.7,2.7707]
[1756519327791,5.3732,4276.3,4275.1,2.3897]
[1756519328091,5.3732,4276.3,4275.6,2.3897]
[1756519328092,0.42089,4275.9,4275.6,2.3897]
[1756519328279,2.1654,4276.3,4275.7,0.381]
[1756519328483,0.42086,4276.2,4276.0,3.2078]
[1756519328680,0.42086,4276.2,4276.1,0.381]
[1756519328889,2.1654,4276.3,4276.1,2.7707]
[1756519329289,2.1654,4276.3,4276.2,2.3897]
[1756519329593,5.6532,4276.9,4276.2,2.3897]
[1756519329798,2.4454,4277.3,4276.5,3.2078]
[1756519330094,2.4454,4277.3,4276.6,0.381]
[1756519331895,2.1649,4277.2,4276.6,0.381]
[1756519332892,10.5156,4278.7,4276.6,0.381]
[1756519332893,2.4454,4278.6,4277.1,3.2078]
[1756519333089,2.4454,4278.6,4277.9,3.2078]
[1756519333294,2.4454,4278.1,4277.2,36.9008]
[1756519333591,2.4454,4278.1,4277.3,0.38]
[1756519333797,2.4454,4279.3,4278.1,2.3897]
[1756519333993,2.4454,4278.8,4278.1,2.3897]
[1756519334296,3.2078,4279.6,4278.1,0.38]
[1756519334489,2.4454,4278.6,4278.1,0.38]
[1756519334691,3.2078,4279.6,4278.1,0.38]
[1756519334993,4.2454,4278.2,4278.1,0.38]
[1756519335187,1.8,4278.2,4277.8,3.2078]
[1756519335389,2.4454,4278.1,4277.9,0.38]
[1756519335587,2.4454,4278.1,4277.4,2.3897]
[1756519335784,0.42071,4277.7,4277.2,36.9008]
[1756519335987,0.42071,4277.7,4277.3,0.38]
[1756519336186,0.42069,4278.0,4277.4,2.7697]
[1756519336393,0.4207,4277.8,4277.4,0.38]
[1756519336690,0.42072,4277.6,4277.4,0.38]
[1756519336892,2.4454,4278.1,4277.5,0.38]
[1756519337383,2.22067,4278.2,4277.5,0.38]
[1756519337588,0.4207,4277.8,4277.5,0.38]
[1756519337789,2.4454,4277.7,4277.5,0.38]
[1756519338392,2.4454,4277.7,4277.3,2.3897]
[1756519338599,0.42072,4277.6,4277.4,0.38]
[1756519338789,2.4454,4277.5,4277.4,0.38]
[1756519338993,2.4454,4277.3,4277.2,33.693]
[1756519339290,2.4454,4277.3,4277.2,34.073]
[1756519340394,6.4454,4277.3,4277.2,34.073]
[1756519340893,0.42083,4276.6,4276.3,3.2078]
[1756519341093,2.4454,4277.3,4276.4,0.38]
[1756519341294,2.4454,4276.5,4276.4,0.38]
[1756519342888,2.86629,4275.9,4275.8,33.682]
[1756519343095,2.86629,4275.9,4275.8,34.061]
[1756519343295,0.42093,4275.5,4275.0,3.2078]
[1756519343596,0.42095,4275.3,4275.1,2.7687]
[1756519343791,0.42095,4275.3,4275.1,0.379]
[1756519343792,2.4454,4275.2,4275.1,0.379]
[1756519344093,3.2078,4275.9,4275.1,0.379]
[1756519344094,2.86633,4275.5,4275.1,0.379]
[1756519344292,2.86633,4275.5,4275.2,3.2078]
[1756519344593,2.86633,4275.5,4275.3,3.2078]
[1756519344787,2.86633,4275.5,4275.4,0.379]
[1756519344988,2.4454,4275.5,4275.4,0.379]
[1756519345188,3.2078,4275.9,4275.4,0.379]
[1756519345189,6.07409,4275.9,4275.5,2.3897]
[1756519345484,3.2078,4276.5,4275.7,2.3897]
[1756519345796,3.2078,4276.5,4275.8,0.379]
[1756519346292,2.4454,4277.0,4276.1,2.3897]
[1756519346488,2.4454,4277.0,4276.2,0.379]
[1756519346793,0.42076,4277.3,4276.6,2.3897]
[1756519347094,0.42076,4277.3,4276.7,0.379]
[1756519347995,0.42074,4277.4,4276.8,2.3897]
[1756519348196,0.42073,4277.5,4276.8,2.3897]
[1756519349190,2.4454,4277.6,4277.0,3.2078]
[1756519349394,2.86611,4277.8,4277.1,0.379]
[1756519349589,2.4454,4277.5,4277.1,0.379]
[1756519349892,0.42072,4277.6,4277.1,0.379]
[1756519349893,0.42072,4277.6,4277.1,2.7687]
[1756519350100,2.4454,4277.5,4277.1,2.7687]
[1756519350487,0.42072,4277.6,4277.1,2.7687]
[1756519350684,2.4454,4277.5,4277.1,2.7687]
[1756519351097,2.4454,4277.3,4277.1,0.379]
[1756519351287,0.42074,4277.4,4277.1,0.379]
[1756519351494,0.42072,4277.6,4277.1,0.379]
[1756519351693,2.86612,4277.6,4277.2,2.3897]
[1756519352299,0.42072,4277.6,4277.2,2.3897]
[1756519352597,2.4454,4277.4,4277.2,2.3897]
[1756519352797,0.42075,4277.4,4277.1,0.379]
[1756519352999,2.4454,4277.3,4277.1,0.379]
[1756519353299,0.42075,4277.4,4277.2,2.3897]
[1756519353696,2.86615,4277.4,4277.2,2.3897]
[1756519353901,3.2078,4277.4,4277.3,0.378]
[1756519354197,5.6532,4277.4,4277.3,0.378]
[1756519354896,5.6532,4277.4,4276.5,3.2078]
[1756519354897,0.42082,4276.6,4276.5,3.2078]
[1756519355100,2.86626,4276.2,4276.1,33.684]
[1756519355297,2.86626,4276.2,4276.1,34.062]
[1756519358302,0.42084,4276.5,4276.1,36.4672]
[1756519358600,0.42084,4276.5,4276.1,34.062]
[1756519358801,0.42084,4276.5,4276.2,2.4052]
[1756519359003,0.42081,4276.7,4276.3,0.377]
[1756519359202,2.3151,4277.3,4276.4,2.4052]
[1756519359391,0.42082,4276.6,4276.5,0.377]
[1756519359593,0.4208,4276.8,4276.5,2.7822]
[1756519359797,1.7267,4277.2,4276.5,2.7822]
[1756519360596,0.42081,4276.7,4276.6,0.377]
[1756519360797,0.42079,4277.0,4276.7,2.4052]
[1756519361100,2.14746,4277.2,4276.8,0.377]
[1756519361302,1.7267,4277.2,4277.0,2.4052]
[1756519361502,4.0418,4277.2,4277.1,0.377]
[1756519363606,1.7267,4277.2,4277.1,2.7822]
[1756519364104,1.7267,4277.2,4277.1,6.7822]
[1756519364405,1.7267,4277.2,4277.1,7.016]
[1756519364803,1.7267,4277.2,4277.1,6.7822]
[1756519364995,1.8,4278.2,4277.6,0.42071]
[1756519365200,1.8,4278.2,4277.9,3.2078]
[1756519365399,1.8,4278.2,4278.1,1.59377]
[1756519366304,1.8,4278.2,4278.1,1.1731]
[1756519366505,1.8,4278.2,4278.1,1.5491]
[1756519368706,1.8,4278.2,4278.1,0.376]
[1756519369105,1.8,4278.2,4278.1,1.5491]
[1756519373707,1.8,4278.2,4278.1,1.1731]
[1756519373910,1.8,4278.2,4277.9,3.2078]
[1756519374110,1.8,4278.2,4278.0,1.5481]
[1756519374705,1.8,4278.2,4278.1,1.1731]
[1756519374910,2.3151,4279.6,4278.7,1.59371]
[1756519375108,2.3151,4279.5,4279.1,3.2078]
[1756519375412,2.3151,4279.5,4269.5,8.857]
[1756519375413,0.4209,4275.8,4275.7,4.12295542]
[1756519375706,0.42091,4275.7,4274.2,2.4052]
[1756519375906,0.6888,4274.6,4274.3,0.374]
[1756519376104,3.2078,4275.5,4274.4,2.7792]
[1756519376305,0.24166318,4275.4,4274.7,3.2078]
[1756519376501,0.24166318,4275.3,4274.8,0.374]
[1756519376705,10.51928,4277.2,4274.4,33.671]
[1756519376706,3.2078,4276.1,4275.2,3.2078]
[1756519376906,3.2078,4276.1,4275.4,2.4052]
[1756519377110,3.2078,4276.1,4276.0,0.27181482]
[1756519377313,5.76449733,4276.1,4276.0,0.64581482]
[1756519377904,5.76445593,4276.1,4276.0,0.64581482]
[1756519378108,5.5229,4276.1,4276.0,0.64581482]
[1756519378717,0.26396425,4276.1,4276.0,3.05101482]
[1756519379021,3.2078,4280.1,4276.5,3.2078]
[1756519379210,2.3151,4280.8,4280.0,3.2078]
[1756519379405,2.3151,4280.8,4279.0,2.4052]
[1756519379611,35.24313216,4284.3,4279.1,34.049]
[1756519379806,3.2078,4280.7,4279.3,3.2078]
[1756519380008,2.3151,4281.1,4279.8,3.47961482]
[1756519380214,2.3151,4281.0,4279.9,0.374]
[1756519380512,2.3151,4281.0,4280.4,0.27181482]
[1756519380710,2.3151,4281.7,4280.5,0.374]
[1756519380911,2.3151,4281.7,4280.7,0.27181482]
[1756519381112,2.3151,4281.6,4280.8,0.374]
[1756519381504,3.2078,4281.8,4280.9,0.374]
[1756519381707,2.3151,4281.7,4280.9,0.374]
[1756519382108,2.3151,4281.7,4281.0,0.36508084]
[1756519382306,2.3151,4281.7,4281.1,0.36508084]
[1756519382505,2.3151,4281.7,4281.2,0.36508084]
[1756519382712,2.3151,4281.7,4280.7,36.8778]
[1756519382713,2.3151,4281.7,4281.3,0.373]
[1756519383113,2.3151,4281.7,4281.4,0.36500095]
[1756519383411,2.3151,4283.0,4281.6,0.27181482]
[1756519383715,2.3151,4282.2,4281.7,0.73800095]
[1756519383914,3.2078,4283.0,4281.8,0.36500095]
[1756519384207,0.373,4283.7,4281.7,0.373]
[1756519384208,2.3151,4282.3,4281.9,0.36500095]
[1756519384414,2.3151,4282.3,4282.0,0.36500095]
[1756519384609,2.3151,4282.2,4282.1,0.36500095]
[1756519384815,2.3151,4282.2,4282.1,0.73800095]
[1756519385013,2.3151,4282.2,4282.1,0.373]
[1756519385415,2.3151,4282.2,4282.1,0.71548046]
[1756519385616,2.3151,4283.4,4282.2,0.42027]
[1756519385816,2.3151,4283.4,4282.8,0.42021]
[1756519386018,3.2078,4283.5,4283.1,0.27181482]
[1756519386214,2.3151,4283.4,4283.0,0.42019]
[1756519386415,3.2078,4283.5,4282.8,3.2078]
[1756519386618,3.2078,4283.5,4283.1,0.27181482]
[1756519387010,2.2886,4283.3,4282.8,3.2078]
[1756519387217,2.2886,4283.4,4282.9,0.373]
[1756519387412,2.2886,4283.4,4282.8,0.27181482]
[1756519387613,3.2078,4283.1,4282.4,33.657]
[1756519387820,2.2886,4282.9,4282.5,0.372]
[1756519388018,3.2078,4283.2,4282.0,3.2078]
[1756519388207,3.2078,4282.6,4281.9,3.2078]
[1756519388410,2.2886,4282.9,4282.2,0.27181482]
[1756519389208,2.2886,4282.9,4281.9,37.2841]
[1756519389518,2.2886,4282.9,4282.2,0.27181482]